[Event "July 23 Late 2024"]
[Site "Chess.com"]
[Date "2024.07.23"]
[Round "10.14"]
[White "Andreikin, Dmitry"]
[Black "Makarian, Rudik"]
[Result "1-0"]
[ECO "A07"]
[WhiteElo "3098"]
[BlackElo "2927"]
[PlyCount "77"]
[EventDate "2024.??.??"]
[WhiteTeam "FID"]
[BlackTeam "FID"]
[TimeControl "180+1"]
[WhiteClock "0:00:29"]

1. Nf3 {[%emt 0:00:02]} Nf6 {[%emt 0:00:03]} 2. g3 {[%emt 0:00:01]} d5 {[%emt 0:00:01]} 3. Bg2 {[%emt 0:00:01]} e6 {[%emt 0:00:00]} 4. O-O {[%emt 0:00:02]} Be7 {[%emt 0:00:00]} 5. d3 {[%emt 0:00:01]} O-O {[%emt 0:00:03]} 6. a4 {[%emt 0:00:00]} a5 {[%emt 0:00:03]} 7. Bf4 {[%emt 0:00:01]} Bd6 {[%emt 0:00:05]} 8. Bxd6 {[%emt 0:00:04]} Qxd6 {[%emt 0:00:05]} 9. Nc3 {[%emt 0:00:04]} e5 {[%emt 0:00:18]} 10. e4 {[%emt 0:00:09]} d4 {[%emt 0:00:03]} 11. Nb5 $146 {[%emt 0:00:11]} ({RR} 11. Nb1 c6 12. h3 Na6 13. Nh4 Qb4 14. Qc1 Nc5 15. b3 b5 16. Nf5 Bxf5 17. exf5 e4 18. axb5 cxb5 19. dxe4 Ncxe4 20. Qe1 Rae8 21. Qxb4 axb4 22. Ra5 Rb8 23. Rd1 Rfd8 24. Ra7 Rbc8 25. Re7 Nc3 {Dronavalli,H (2500)-Ushenina,A (2434) Kolkata IND 2023 ½-½ (40)}) 11... Qe7 {[%emt 0:00:05]} 12. c3 {[%emt 0:00:02]} dxc3 {[%emt 0:00:11]} 13. bxc3 {[%emt 0:00:02]} Rd8 {[%emt 0:00:01]} 14. Qc2 {[%emt 0:00:02]} Ra6 {[%emt 0:00:41]} 15. d4 {[%emt 0:00:07]} exd4 {[%emt 0:00:03]} 16. e5 {[%emt 0:00:01]} Nd5 {[%emt 0:00:06]} 17. Nfxd4 {[%emt 0:00:10]} Rh6 {[%emt 0:00:06]} 18. Rfe1 {[%emt 0:00:05]} Nc6 {[%emt 0:00:05]} 19. Rad1 {[%emt 0:00:04]} Nxd4 {[%emt 0:00:05]} 20. Nxd4 {[%emt 0:00:05]} c6 {[%emt 0:00:04]} 21. e6 {[%emt 0:00:06]} Bxe6 {[%emt 0:00:14]} 22. c4 {[%emt 0:00:19]} Nb4 {[%emt 0:00:38]} 23. Nf5 {[%emt 0:00:01]} Nxc2 {[%emt 0:00:16]} 24. Nxe7+ {[%emt 0:00:04]} Kf8 {[%emt 0:00:01]} 25. Rxd8+ {[%emt 0:00:14]} Kxe7 {[%emt 0:00:00]} 26. Red1 {[%emt 0:00:01]} Nb4 {[%emt 0:00:07]} 27. Rb8 {[%emt 0:00:04]} Rh5 {[%emt 0:00:01]} 28. Rxb7+ {[%emt 0:00:02]} Kf6 {[%emt 0:00:01]} 29. Ra7 {[%emt 0:00:32]} Rc5 {[%emt 0:00:00]} 30. Bf1 {[%emt 0:00:00]} h5 {[%emt 0:00:02]} 31. f4 {[%emt 0:00:02]} g5 {[%emt 0:00:01]} 32. fxg5+ {[%emt 0:00:03]} Kxg5 {[%emt 0:00:01]} 33. Rd8 {[%emt 0:00:03]} Kf6 {[%emt 0:00:01]} 34. Rda8 {[%emt 0:00:01]} Bxc4 {[%emt 0:00:02]} 35. Rxa5 {[%emt 0:00:02]} Rxa5 {[%emt 0:00:02]} 36. Rxa5 {[%emt 0:00:00]} Bd5 {[%emt 0:00:00]} 37. Ra7 {[%emt 0:00:11]} Ke5 {[%emt 0:00:01]} 38. a5 {[%emt 0:00:01]} c5 {[%emt 0:00:03]} 39. Rc7 {[%emt 0:00:11]} 1-0

[Event "July 23 Late 2024"]
[Site "Chess.com"]
[Date "2024.07.23"]
[Round "10.22"]
[White "Szpar, Milosz"]
[Black "Tarhan, Adar"]
[Result "1-0"]
[ECO "A09"]
[WhiteElo "2913"]
[BlackElo "2706"]
[PlyCount "85"]
[EventDate "2024.??.??"]
[WhiteTeam "POL"]
[BlackTeam "TUR"]
[TimeControl "180+1"]
[WhiteClock "0:00:16"]
[BlackClock "0:00:01"]

1. Nf3 {[%emt 0:00:02]} d5 {[%emt 0:00:07]} 2. c4 {[%emt 0:00:00]} d4 {[%emt 0:00:02]} 3. b4 {[%emt 0:00:01]} Nf6 {[%emt 0:00:01]} 4. g3 {[%emt 0:00:03]} c5 {[%emt 0:00:05]} 5. Bg2 {[%emt 0:00:05]} cxb4 {[%emt 0:00:01]} 6. O-O {[%emt 0:00:01]} Nc6 {[%emt 0:00:01]} 7. a3 {[%emt 0:00:00]} bxa3 {[%emt 0:00:02]} 8. d3 {[%emt 0:00:01]} e5 {[%emt 0:00:02]} 9. Bg5 $146 {[%emt 0:00:11]} ({RR} 9. Qa4 Bd7 10. Nxa3 Bd6 11. Bg5 O-O 12. Rfb1 Rb8 13. Nd2 h6 14. Bxf6 gxf6 15. Nb5 Bg4 16. Kf1 Qd7 17. Nxa7 Ra8 18. Qb5 Rfb8 19. Ne4 Be7 20. Qb6 Bh3 21. Nxc6 Bxg2+ 22. Kxg2 Qxc6 23. Rxa8 Rxa8 {Yu,Y (2738)-Zhao,Y (2313) China 2016 1-0}) ({RR} 9. Qa4 Bd7 10. Bxa3 Bxa3 11. Qxa3 Qe7 12. Nbd2 ({RR} 12. Ng5 Qxa3 13. Nxa3 Ke7 14. Rfb1 Rab8 15. f4 exf4 16. gxf4 Nh5 17. Rf1 Nb4 18. Ne4 Rhc8 19. Nd2 Bc6 20. Nb3 Bxg2 21. Kxg2 Rd8 22. Kf3 a6 23. Rfb1 b6 24. Rb2 Rd6 25. Nd2 a5 26. Ne4 Re6) 12... Qxa3 13. Rxa3 Ke7 14. Rb1 Rab8 15. Ne1 Rhc8 16. Nc2 a6 17. f4 Ng4 18. fxe5 Ngxe5 19. Nf3 Nxf3+ 20. Bxf3 b5 21. Bxc6 Rxc6 22. Nxd4 Rd6 23. e3 Rc8 {Carlsen,M (2828)-Duda,J (2748) Warsaw, Poland 2024 1-0 (66)}) ({RR} 9. Qa4 Bd7 10. Bxa3 Bxa3 11. Qxa3 Qe7 12. Nbd2 Qxa3 13. Rxa3 Ke7 14. Rb1 Rab8 15. Ne1 Rhc8 16. Nc2 a6 17. f4 Ng4 18. fxe5 Ngxe5 19. Nf3 Nxf3+ 20. Bxf3 b5 21. Bxc6 Rxc6 22. Nxd4 Rd6 23. e3 Rc8 {Carlsen,M (2830)-Duda,J (2734) Warsaw POL 2024 1-0 (66)}) 9... h6 {[%emt 0:00:04]} 10. Bxf6 {[%emt 0:00:01]} Qxf6 {[%emt 0:00:00]} 11. Nxa3 {[%emt 0:00:01]} Bxa3 {[%emt 0:00:00]} 12. Rxa3 {[%emt 0:00:01]} O-O {[%emt 0:00:01]} 13. Qa1 {[%emt 0:00:02]} Re8 {[%emt 0:00:03]} 14. Rb1 {[%emt 0:00:01]} e4 {[%emt 0:00:04]} 15. Nd2 {[%emt 0:00:01]} e3 {[%emt 0:00:17]} 16. fxe3 {[%emt 0:00:01]} Rxe3 {[%emt 0:00:01]} 17. Ne4 {[%emt 0:00:01]} Qe7 {[%emt 0:00:01]} 18. Bf3 {[%emt 0:00:19]} Ne5 {[%emt 0:00:04]} 19. Kg2 {[%emt 0:00:09]} Nxf3 {[%emt 0:00:17]} 20. exf3 {[%emt 0:00:02]} Re2+ {[%emt 0:00:01]} 21. Kg1 {[%emt 0:00:03]} Bh3 {[%emt 0:00:03]} 22. Rab3 {[%emt 0:00:05]} f5 {[%emt 0:00:29]} 23. Rxb7 {[%emt 0:00:02]} Qd8 {[%emt 0:00:06]} 24. Nf2 {[%emt 0:00:09]} Qe8 {[%emt 0:00:01]} 25. R7b2 {[%emt 0:00:17]} f4 {[%emt 0:00:23]} 26. Rxe2 {[%emt 0:00:14]} Qxe2 {[%emt 0:00:00]} 27. Qxd4 {[%emt 0:00:15]} fxg3 {[%emt 0:00:55]} 28. Qd5+ {[%emt 0:00:14]} Kh7 {[%emt 0:00:02]} 29. hxg3 {[%emt 0:00:01]} Rb8 {[%emt 0:00:05]} 30. Rc1 {[%emt 0:00:25]} Qd2 {[%emt 0:00:03]} 31. Rd1 {[%emt 0:00:05]} Qc2 {[%emt 0:00:02]} 32. Qe4+ {[%emt 0:00:03]} Kh8 {[%emt 0:00:01]} 33. d4 {[%emt 0:00:01]} Qa4 {[%emt 0:00:04]} 34. d5 {[%emt 0:00:04]} Re8 {[%emt 0:00:01]} 35. Qd4 {[%emt 0:00:12]} Bd7 {[%emt 0:00:06]} 36. c5 {[%emt 0:00:03]} Qb5 {[%emt 0:00:01]} 37. c6 {[%emt 0:00:02]} Bxc6 {[%emt 0:00:01]} 38. dxc6 {[%emt 0:00:00]} Qxc6 {[%emt 0:00:00]} 39. Qd5 {[%emt 0:00:03]} Qf6 {[%emt 0:00:01]} 40. Kg2 {[%emt 0:00:02]} a6 {[%emt 0:00:01]} 41. Rd2 {[%emt 0:00:01]} Re3 {[%emt 0:00:02]} 42. Qa8+ {[%emt 0:00:02]} Qd8 {[%emt 0:00:01]} 43. Rxd8+ {[%emt 0:00:02]} 1-0

[Event "July 23 Late 2024"]
[Site "Chess.com"]
[Date "2024.07.23"]
[Round "10.59"]
[White "Hernandez Amura, Gilberto"]
[Black "Sargsyan, Anna M."]
[Result "1-0"]
[ECO "A05"]
[WhiteElo "2528"]
[BlackElo "2638"]
[PlyCount "77"]
[EventDate "2024.??.??"]
[WhiteTeam "ARG"]
[BlackTeam "ARM"]
[TimeControl "180+1"]
[WhiteClock "0:01:21"]
[BlackClock "0:01:43"]

1. Nf3 {[%emt 0:00:02]} Nf6 {[%emt 0:00:03]} 2. g3 {[%emt 0:00:01]} g6 {[%emt 0:00:00]} 3. b3 {[%emt 0:00:01]} Bg7 {[%emt 0:00:00]} 4. Bb2 {[%emt 0:00:01]} O-O {[%emt 0:00:01]} 5. Bg2 {[%emt 0:00:00]} d5 {[%emt 0:00:01]} 6. c4 {[%emt 0:00:02]} dxc4 {[%emt 0:00:01]} 7. bxc4 {[%emt 0:00:02]} c5 {[%emt 0:00:01]} 8. O-O {[%emt 0:00:01]} Nc6 {[%emt 0:00:00]} 9. d3 {[%emt 0:00:01]} Nd4 {[%emt 0:00:03]} ({RR} 9... Bf5 10. Nc3 Qd7 11. Re1 Rac8 12. Rb1 b6 13. Nb5 Bh3 14. Bh1 Ne8 15. Bxg7 Nxg7 16. Ng5 Bg4 17. Qd2 h6 18. Ne4 Kh7 19. Nec3 f5 20. f3 Bh5 21. f4 e6 22. Bg2 Rfd8 23. Kh1 Qe7 24. Qe3 {Radjabov,T (2744)-Jakovenko,D (2736) Khanty-Mansiysk 2011 1-0 (48)}) 10. Bxd4 $146 {[%emt 0:00:03]} ({RR} 10. Nbd2 Rb8 11. Nb3 Nxb3 12. axb3 a6 13. Be5 Nd7 14. Bxg7 Kxg7 15. b4 cxb4 16. Qa4 b5 17. Qxb4 bxc4 18. Qxc4 Nf6 19. Nd4 Qd6 20. Nc6 Rb2 21. e4 e5 22. d4 Rb6 23. Rac1 Nd7 24. f4 exd4 {Galzagorri Uli,Y (2227)-Salcedo,M (2026) San Sebastian 2005 1-0 (33)}) ({RR} 10. Nxd4 cxd4 11. Nd2 e5 12. a4 Qc7 13. a5 Rb8 14. Ba3 Re8 15. Qb3 Bd7 16. a6 bxa6 17. Qa2 Bc6 18. Nf3 a5 19. Rfb1 a4 20. Bb4 a5 21. Be1 Bf8 22. Nh4 a3 23. Bd2 Bb4 24. Bc1 Bxg2 {Arabidze,M (2426)-Mestnikov,A (2097) Chess.com INT 2022 1-0 (41)}) 10... cxd4 {[%emt 0:00:00]} 11. Nbd2 {[%emt 0:00:01]} Re8 {[%emt 0:00:01]} 12. Rb1 {[%emt 0:00:13]} Rb8 {[%emt 0:00:01]} 13. Qa4 {[%emt 0:00:02]} a6 {[%emt 0:00:03]} 14. Qb4 {[%emt 0:00:02]} e5 {[%emt 0:00:02]} 15. Ng5 {[%emt 0:00:06]} Bf8 {[%emt 0:00:01]} 16. Qb6 {[%emt 0:00:04]} Qxb6 {[%emt 0:00:05]} 17. Rxb6 {[%emt 0:00:00]} Nd7 {[%emt 0:00:02]} 18. Rb2 {[%emt 0:00:08]} h6 {[%emt 0:00:01]} 19. Nge4 {[%emt 0:00:02]} f5 {[%emt 0:00:02]} 20. Rfb1 {[%emt 0:00:06]} fxe4 {[%emt 0:00:02]} 21. Nxe4 {[%emt 0:00:02]} Nc5 {[%emt 0:00:04]} 22. Nf6+ {[%emt 0:00:03]} Kf7 {[%emt 0:00:02]} 23. Nxe8 {[%emt 0:00:01]} Kxe8 {[%emt 0:00:01]} 24. Rb6 {[%emt 0:00:02]} Na4 {[%emt 0:00:17]} 25. Rxa6 {[%emt 0:00:15]} Nc3 {[%emt 0:00:03]} 26. Rb2 {[%emt 0:00:03]} bxa6 {[%emt 0:00:14]} 27. Rxb8 {[%emt 0:00:02]} Nxa2 {[%emt 0:00:16]} 28. Rxc8+ {[%emt 0:00:02]} Kf7 {[%emt 0:00:01]} 29. Bd5+ {[%emt 0:00:06]} Kg7 {[%emt 0:00:04]} 30. Ra8 {[%emt 0:00:02]} Nb4 {[%emt 0:00:02]} 31. Ra7+ {[%emt 0:00:02]} Kh8 {[%emt 0:00:01]} 32. h4 {[%emt 0:00:12]} Bc5 {[%emt 0:00:02]} 33. Ra8+ {[%emt 0:00:02]} Kg7 {[%emt 0:00:01]} 34. Bb7 {[%emt 0:00:01]} e4 {[%emt 0:00:04]} 35. dxe4 {[%emt 0:00:06]} d3 {[%emt 0:00:01]} 36. exd3 {[%emt 0:00:02]} Nxd3 {[%emt 0:00:00]} 37. Rxa6 {[%emt 0:00:11]} Bxf2+ {[%emt 0:00:10]} 38. Kg2 {[%emt 0:00:02]} Bd4 {[%emt 0:00:03]} 39. Rd6 {[%emt 0:00:05]} 1-0

[Event "XTX Markets London Classic-Elite 2024"]
[Site "London"]
[Date "2024.12.01"]
[Round "3.1"]
[White "Mamedyarov, Shakhriyar"]
[Black "Ju, Wenjun"]
[Result "1-0"]
[ECO "A07"]
[WhiteElo "2738"]
[BlackElo "2563"]
[Annotator "TA"]
[PlyCount "85"]
[EventDate "2024.??.??"]
[TimeControl "60"]

{[%evp 11,85,0,0,0,4,6,20,23,21,0,0,4,0,12,18,8,26,37,37,39,63,68,108,109,195,141,154,103,104,100,218,116,86,77,111,114,117,107,114,87,89,73,98,126,120,93,97,22,26,21,21,0,1,-45,-45,-45,-44,-31,8,10,8,12,111,111,105,99,187,161,363,365,345,363,354,354,454,495]} 1. Nf3 {[%emt 0:00:03]} d5 {[%emt 0:00:10]} 2. g3 {[%emt 0:00:09]} g6 {[%emt 0:02:25]} 3. Bg2 {[%emt 0:00:33]} Bg7 {[%emt 0:00:04]} 4. O-O {[%emt 0:00:24]} e5 {[%emt 0:07:00]} 5. d3 {[%emt 0:00:06]} Ne7 {[%emt 0:01:32]} 6. c4 {[%emt 0:00:12]} c6 {[%emt 0:08:45]} 7. e4 {[%emt 0:01:45]} O-O {[%emt 0:02:19]} ({RR} 7... dxe4 8. dxe4 Qxd1 9. Rxd1 Be6 10. b3 f6 11. Nc3 Na6 12. Be3 h5 13. Ne1 h4 14. Nd3 hxg3 15. hxg3 Kf7 16. f4 exf4 17. gxf4 Rhd8 18. Kf2 Rd7 19. Nc5 Nxc5 20. Bxc5 b6 21. Rxd7 Bxd7 22. Be3 {Ding,L (2799)-Aronian,L (2782) chess24.com INT 2021 ½-½ (53)}) ({RR} 7... dxe4 8. dxe4 Qxd1 9. Rxd1 Be6 10. b3 f6 11. Nc3 Na6 12. Be3 h5 13. Ne1 h4 14. Nd3 hxg3 15. hxg3 Kf7 16. f4 exf4 17. gxf4 Rhd8 18. Kf2 Rd7 19. Nc5 Nxc5 20. Bxc5 b6 21. Rxd7 Bxd7 22. Be3 {Ding,L (2799)-Aronian,L (2782) chess24.com INT 2021 ½-½ (53)}) 8. b4 {[%emt 0:11:18]} dxe4 $146 {[%emt 0:19:34]} ({RR} 8... a5 9. b5 dxc4 10. dxc4 Be6 11. Qe2 h6 12. Rd1 Qc7 13. Ba3 Re8 14. Nc3 Nd7 15. Rac1 c5 16. Nd5 Bxd5 17. cxd5 Nc8 18. Bh3 b6 19. Nd2 Nd6 20. Bb2 Nf8 21. a4 h5 22. Nc4 Nxc4 23. Rxc4 {Glashausser,S (1973)-Keller,P (2289) chess.com INT 2024 0-1 (42)}) ({RR} 8... d4 9. a4 c5 10. bxc5 Nec6 11. Nbd2 Be6 12. Rb1 Nd7 13. Rxb7 Nxc5 14. Rb5 Nxd3 15. Ba3 a6 16. Rb3 Nxf2 17. Rxf2 Re8 18. h4 Bh6 19. Ng5 Bxg5 20. hxg5 Qxg5 21. Rb6 Rac8 22. Qf3 d3 23. Bd6 {Oparin,G (2674)-Aronian,L (2785) Chess.com INT 2022 ½-½ (53)}) 9. dxe4 {[%emt 0:00:09] The position is equal.} Nf5 $146 {[%emt 0:00:18]} ({RR} 9... Qxd1 10. Rxd1 Be6 11. Na3 Na6 12. Ng5 Bg4 13. f3 Bc8 14. b5 Nc5 15. Be3 Na4 16. Rac1 h6 17. Nh3 Be6 18. Nf2 Rfc8 19. Nd3 f6 20. Nc5 Nxc5 21. Bxc5 Bf8 22. f4 Bg4 23. Rf1 cxb5 24. cxb5 {Borne,F (2225)-Kjartansson,G (2450) Reykjavik ISL 2025 1-0 (61)}) 10. Bb2 {[%emt 0:06:06]} (10. exf5 e4 11. Qxd8 Rxd8 $15) 10... Nd4 {[%emt 0:02:48]} 11. Nxd4 {[%emt 0:00:12]} exd4 {[%emt 0:00:02]} 12. Nd2 {[%emt 0:00:05]} a5 {[%emt 0:01:38]} 13. b5 {[%emt 0:06:33]} a4 {[%emt 0:06:05]} 14. Ba3 {[%emt 0:01:08]} Re8 {[%emt 0:00:07]} 15. f4 {[%emt 0:00:02]} cxb5 {[%emt 0:13:56]} 16. cxb5 {[%emt 0:00:07]} d3 {[%emt 0:00:04]} 17. e5 {[%emt 0:05:42]} f5 {[%emt 0:12:28] Prevents Ne4.} (17... Qd4+ $16 18. Rf2 Bg4) 18. Kh1 {[%emt 0:05:06]} (18. Nf3 $18) 18... Be6 $16 {[%emt 0:00:05]} 19. Bxb7 {[%emt 0:02:38]} (19. Qf3 $142) 19... Ra5 {[%emt 0:02:57]} 20. Bg2 {[%emt 0:02:45]} Rxb5 {[%emt 0:00:02] [#]} (20... Bf8 $16 {might work better.} 21. Bxf8 Rxf8) 21. Bd6 {[%emt 0:00:46]} (21. Qxa4 $2 Ra5 22. Qd1 (22. Qb4 $2 Bf8 $19) 22... Rxa3 $19) ({Only move:} 21. Nc4 $1 $18 {[%cal Rc4d6]}) 21... Bf8 {[%emt 0:01:57]} 22. Qxa4 {[%emt 0:04:57]} Qa5 {[%emt 0:04:06]} 23. Qxa5 {[%emt 0:04:41]} Rxa5 {[%emt 0:00:02] [#]} 24. Bxf8 $1 {[%emt 0:06:22]} Kxf8 {[%emt 0:00:03]} 25. Nb3 {[%emt 0:00:04]} Ra3 {[%emt 0:03:40][%cal Ob8a6]} 26. Nc5 {[%emt 0:01:47]} Nd7 {[%emt 0:01:55]} 27. Nxe6+ {[%emt 0:03:25]} Rxe6 {[%emt 0:00:04]} 28. Rfc1 {[%emt 0:00:03] Against Nc5} Rea6 {[%emt 0:03:26]} 29. Rc8+ {[%emt 0:04:02]} (29. Rc7 $16 Rxa2 30. Rxa2 Rxa2 31. Rxd7 Ra1+ 32. Bf1 Rxf1+ 33. Kg2) 29... Ke7 $11 {[%emt 0:00:09]} 30. Bc6 {[%emt 0:00:27] Rd1 is the strong threat.} Ra7 $1 {[%emt 0:02:56]} 31. Rh8 {[%emt 0:10:23]} Nf8 {[%emt 0:01:42][%cal Oa3c3] White must now prevent ...Rc3!} 32. Bd5 {[%emt 0:00:11]} (32. Rg8 $11 {deserves consideration.}) 32... d2 $15 {[%emt 0:02:45][%mdl 1024] Black has compensation.} 33. Rd1 {[%emt 0:07:23][%cal Od5b3]} Rd3 {[%emt 0:00:02]} 34. Rg8 {[%emt 0:00:55]} Ne6 {[%emt 0:01:33] Against Rg7+} (34... Ke8 $5 35. Bc4 Rc3 36. Bb5+ Kf7 37. Rxf8+ (37. Rh8 $2 Rc1 $19) 37... Kxf8 38. Rxd2 Ke7 $15) 35. Bc4 $36 {[%emt 0:00:50][%mdl 2048] White has good play.} Rd4 {[%emt 0:00:09]} 36. Rc8 {[%emt 0:02:05]} ({Don't blunder} 36. Rh8 $2 Rxc4 37. Rxd2 (37. Rxh7+ $2 {too greedy.} Kf8 $19) 37... Nf8 $19) 36... Nc7 {[%emt 0:01:05]} (36... g5 $11 {remains equal.}) 37. Bb3 $16 {[%emt 0:00:23]} Kd7 {[%emt 0:00:27]} 38. Rh8 {[%emt 0:01:11][%cal Oh1g2]} h5 {[%emt 0:00:05]} (38... Kc6 $16) 39. Kg2 {[%emt 0:03:36] Kf3 would now be deadly.} Kc6 $2 {[%emt 0:00:59]} (39... Ra3) 40. Kf2 $18 {[%emt 0:02:17]} Nb5 {[%emt 0:00:05]} 41. Rc8+ {[%emt 0:31:27]} ({Weaker is} 41. Ke3 Rad7 $18) 41... Kb6 {[%emt 0:02:02]} 42. a4 {[%emt 0:00:00]} Nc7 {[%emt 0:03:32]} 43. Ke3 {[%emt 0:00:00][%csl Bd2,Bd4] Weighted Error Value: White=0.14 (very precise) /Black=0.31. Mistake: 	White=5 	Black=5 Inaccurate: 	--- 	Black=3 OK: 	White=15 	Black=12 Best: 	White=5 	Black=3 Strong: 	White=1 	Black=1} 1-0